[Event "Early-Titled-Tuesday-Blitz-June-18-2024"]
[Site "Chess.com"]
[Date "2024.06.18"]
[Round "1"]
[White "ValentinDragnev"]
[Black "Timurist"]
[Result "1-0"]
[WhiteElo "2705"]
[BlackElo "2391"]
[TimeControl "180+1"]
[EndTime "8:08:11 PDT"]
[Termination "ValentinDragnev won on time"]

1. e4 {[%clk 0:03:00.9]} 1... c5 {[%clk 0:02:59.1]} 2. Nc3 {[%clk 0:03:00.2]}
2... Nc6 {[%clk 0:02:54.3]} 3. Nge2 {[%clk 0:02:59.4]} 3... g6 {[%clk
0:02:53.5]} 4. d4 {[%clk 0:02:58.6]} 4... cxd4 {[%clk 0:02:53.9]} 5. Nxd4 {[%clk
0:02:59.5]} 5... Bg7 {[%clk 0:02:53.5]} 6. Nxc6 {[%clk 0:03:00.1]} 6... bxc6
{[%clk 0:02:52.7]} 7. Bc4 {[%clk 0:03:00.7]} 7... d6 {[%clk 0:02:51]} 8. O-O
{[%clk 0:03:00.9]} 8... Nf6 {[%clk 0:02:51.4]} 9. e5 {[%clk 0:03:01.5]} 9...
dxe5 {[%clk 0:02:45.7]} 10. Qxd8+ {[%clk 0:03:02.4]} 10... Kxd8 {[%clk
0:02:45.1]} 11. Re1 {[%clk 0:03:03.3]} 11... e6 {[%clk 0:02:38.5]} 12. Rxe5
{[%clk 0:03:02]} 12... Nd5 {[%clk 0:02:37.8]} 13. Re2 {[%clk 0:03:02.7]} 13...
h6 {[%clk 0:02:11.8]} 14. Na4 {[%clk 0:02:57.6]} 14... a5 {[%clk 0:02:08.5]} 15.
c3 {[%clk 0:02:50.7]} 15... Ba6 {[%clk 0:02:02.4]} 16. Bxa6 {[%clk 0:02:50.2]}
16... Rxa6 {[%clk 0:02:03.3]} 17. c4 {[%clk 0:02:45.9]} 17... Nb6 {[%clk
0:01:52.2]} 18. Nc5 {[%clk 0:02:10.6]} 18... Ra8 {[%clk 0:01:49.3]} 19. Rc2
{[%clk 0:02:11.3]} 19... Bd4 {[%clk 0:01:43.6]} 20. Nb3 {[%clk 0:02:06.2]} 20...
Be5 {[%clk 0:01:32.4]} 21. Be3 {[%clk 0:02:00.1]} 21... Kc7 {[%clk 0:01:31.8]}
22. Nd2 {[%clk 0:01:46.7]} 22... Na4 {[%clk 0:01:26.6]} 23. Rb1 {[%clk
0:01:39.9]} 23... g5 {[%clk 0:01:09.3]} 24. b3 {[%clk 0:01:37.7]} 24... Nb6
{[%clk 0:01:02.1]} 25. Re1 {[%clk 0:01:25.5]} 25... Bf6 {[%clk 0:00:55.5]} 26.
Kf1 {[%clk 0:01:24.9]} 26... Rhd8 {[%clk 0:00:55]} 27. Ke2 {[%clk 0:01:25.2]}
27... Rd7 {[%clk 0:00:49.6]} 28. Ne4 {[%clk 0:01:25.3]} 28... Be7 {[%clk
0:00:47.9]} 29. f3 {[%clk 0:01:19.9]} 29... Rdd8 {[%clk 0:00:36.9]} 30. Rb1
{[%clk 0:01:10.8]} 30... Rd7 {[%clk 0:00:35.2]} 31. Nf2 {[%clk 0:01:03.8]} 31...
Rad8 {[%clk 0:00:33.8]} 32. Ng4 {[%clk 0:01:03.2]} 32... h5 {[%clk 0:00:31]} 33.
Ne5 {[%clk 0:01:03.5]} 33... Bf6 {[%clk 0:00:29.3]} 34. Bxb6+ {[%clk 0:00:58.7]}
34... Kxb6 {[%clk 0:00:27.8]} 35. Nxd7+ {[%clk 0:00:59.4]} 35... Rxd7 {[%clk
0:00:28.6]} 36. Rd1 {[%clk 0:00:59.9]} 36... Bd4 {[%clk 0:00:28.4]} 37. c5+
{[%clk 0:00:58.2]} 37... Kb5 {[%clk 0:00:23.2]} 38. a4+ {[%clk 0:00:53.1]} 38...
Ka6 {[%clk 0:00:23.1]} 39. Rc4 {[%clk 0:00:54]} 39... e5 {[%clk 0:00:22.3]} 40.
b4 {[%clk 0:00:54.7]} 40... axb4 {[%clk 0:00:20.4]} 41. Rxb4 {[%clk 0:00:54.9]}
41... Ka5 {[%clk 0:00:19.6]} 42. Rb6 {[%clk 0:00:51.9]} 42... Rc7 {[%clk
0:00:19.4]} 43. Rdb1 {[%clk 0:00:40.7]} 43... Bxc5 {[%clk 0:00:18.2]} 44. Rb8
{[%clk 0:00:36]} 44... Ra7 {[%clk 0:00:12.4]} 45. Kd3 {[%clk 0:00:35.9]} 45...
Bd4 {[%clk 0:00:11.5]} 46. Kc4 {[%clk 0:00:36.1]} 46... g4 {[%clk 0:00:07.4]}
47. R1b7 {[%clk 0:00:27.6]} 47... Ra6 {[%clk 0:00:06.9]} 48. Rxf7 {[%clk
0:00:26.7]} 48... Kxa4 {[%clk 0:00:06.3]} 49. fxg4 {[%clk 0:00:15.9]} 49... hxg4
{[%clk 0:00:07.2]} 50. Rfb7 {[%clk 0:00:14.4]} 50... Ka3 {[%clk 0:00:06.4]} 51.
Rc7 {[%clk 0:00:09.6]} 51... Ra4+ {[%clk 0:00:03.7]} 52. Kd3 {[%clk 0:00:10.3]}
52... c5 {[%clk 0:00:04.3]} 53. Rcc8 {[%clk 0:00:09.4]} 53... c4+ {[%clk
0:00:03.2]} 54. Rxc4 {[%clk 0:00:09.1]} 54... Rxc4 {[%clk 0:00:02.9]} 55. Kxc4
{[%clk 0:00:10]} 55... Ka2 {[%clk 0:00:02.5]} 56. Kd3 {[%clk 0:00:10.1]} 56...
Bg1 {[%clk 0:00:02.9]} 57. h4 {[%clk 0:00:09.4]} 57... gxh3 {[%clk 0:00:03]} 58.
gxh3 {[%clk 0:00:10.3]} 1-0

[Event "Early-Titled-Tuesday-Blitz-June-18-2024"]
[Site "Chess.com"]
[Date "2024.06.18"]
[Round "1"]
[White "LevonAronian"]
[Black "Omranalhosani21"]
[Result "1/2-1/2"]
[WhiteElo "3030"]
[BlackElo "2545"]
[TimeControl "180+1"]
[EndTime "8:08:13 PDT"]
[Termination "Game drawn by repetition"]

1. e4 {[%clk 0:03:00.9]} 1... c5 {[%clk 0:02:58.7]} 2. Nf3 {[%clk 0:03:00.6]}
2... Nc6 {[%clk 0:02:58.7]} 3. Bb5 {[%clk 0:02:59.7]} 3... Nf6 {[%clk
0:02:58.8]} 4. Nc3 {[%clk 0:02:59.4]} 4... e6 {[%clk 0:02:57.3]} 5. Bxc6 {[%clk
0:02:51.2]} 5... dxc6 {[%clk 0:02:54.1]} 6. O-O {[%clk 0:02:41.2]} 6... Be7
{[%clk 0:02:48.4]} 7. d3 {[%clk 0:02:36.1]} 7... O-O {[%clk 0:02:46.9]} 8. e5
{[%clk 0:02:29.1]} 8... Nd5 {[%clk 0:02:21.9]} 9. Ne4 {[%clk 0:02:28.8]} 9... a5
{[%clk 0:02:15.8]} 10. c4 {[%clk 0:02:15.8]} 10... Nb4 {[%clk 0:02:13.9]} 11.
Ne1 {[%clk 0:02:15.5]} 11... b5 {[%clk 0:01:45.6]} 12. a3 {[%clk 0:02:13.3]}
12... Na6 {[%clk 0:01:45.6]} 13. Qg4 {[%clk 0:02:13]} 13... Kh8 {[%clk
0:01:41.2]} 14. Qh5 {[%clk 0:02:11.9]} 14... f5 {[%clk 0:01:25]} 15. Ng5 {[%clk
0:02:11.9]} 15... Bxg5 {[%clk 0:01:22.7]} 16. Bxg5 {[%clk 0:02:12.8]} 16... Qe8
{[%clk 0:01:20.2]} 17. Qh4 {[%clk 0:02:12.8]} 17... Qg6 {[%clk 0:01:01.3]} 18.
Be7 {[%clk 0:02:09.8]} 18... Re8 {[%clk 0:00:58.5]} 19. Bd6 {[%clk 0:02:02.3]}
19... Ra7 {[%clk 0:00:49.3]} 20. f4 {[%clk 0:02:00.9]} 20... bxc4 {[%clk
0:00:35.7]} 21. dxc4 {[%clk 0:02:00.6]} 21... Rb7 {[%clk 0:00:36.6]} 22. Nd3
{[%clk 0:01:54.1]} 22... Rb3 {[%clk 0:00:35.1]} 23. Rf3 {[%clk 0:01:52.7]} 23...
Qg4 {[%clk 0:00:31.4]} 24. Qe1 {[%clk 0:01:51.8]} 24... a4 {[%clk 0:00:22.5]}
25. Rd1 {[%clk 0:01:48.1]} 25... Rg8 {[%clk 0:00:15.3]} 26. Rg3 {[%clk
0:01:45.1]} 26... Qh5 {[%clk 0:00:15.3]} 27. Rh3 {[%clk 0:01:44.7]} 27... Qg6
{[%clk 0:00:13.7]} 28. Qh4 {[%clk 0:01:41.2]} 28... h6 {[%clk 0:00:13.6]} 29.
Rg3 {[%clk 0:01:37.7]} 29... Qf7 {[%clk 0:00:13]} 30. Rd2 {[%clk 0:01:25.1]}
30... Bd7 {[%clk 0:00:13.3]} 31. Nxc5 {[%clk 0:01:19.2]} 31... Nxc5 {[%clk
0:00:13.3]} 32. Bxc5 {[%clk 0:01:19.8]} 32... Rxg3 {[%clk 0:00:08.9]} 33. Qxg3
{[%clk 0:01:20]} 33... Rb8 {[%clk 0:00:08.8]} 34. Qd3 {[%clk 0:01:08.4]} 34...
Be8 {[%clk 0:00:08.9]} 35. Bb4 {[%clk 0:00:44]} 35... Kh7 {[%clk 0:00:08.9]} 36.
h3 {[%clk 0:00:43.8]} 36... Qg6 {[%clk 0:00:07.2]} 37. Kh2 {[%clk 0:00:42.6]}
37... c5 {[%clk 0:00:06]} 38. Qd6 {[%clk 0:00:41.7]} 38... Rb7 {[%clk
0:00:02.7]} 39. Qxc5 {[%clk 0:00:40.6]} 39... Qh5 {[%clk 0:00:01.9]} 40. Qc8
{[%clk 0:00:37.9]} 40... Rb6 {[%clk 0:00:02.2]} 41. Rd6 {[%clk 0:00:30.6]} 41...
Qh4 {[%clk 0:00:02]} 42. Rd4 {[%clk 0:00:14.8]} 42... Qf2 {[%clk 0:00:01.7]} 43.
Bc3 {[%clk 0:00:11.5]} 43... Bc6 {[%clk 0:00:02.1]} 44. Rd2 {[%clk 0:00:11.1]}
44... Qxf4+ {[%clk 0:00:01.8]} 45. Kh1 {[%clk 0:00:11.3]} 45... Qe4 {[%clk
0:00:01.9]} 46. Qd8 {[%clk 0:00:08.9]} 46... Qe3 {[%clk 0:00:02.5]} 47. Qd4
{[%clk 0:00:07.7]} 47... Qxh3+ {[%clk 0:00:02.9]} 48. Kg1 {[%clk 0:00:06.2]}
48... Qg3 {[%clk 0:00:03.5]} 49. Qxb6 {[%clk 0:00:06.2]} 49... Qe1+ {[%clk
0:00:04]} 50. Kh2 {[%clk 0:00:06.8]} 50... Qh4+ {[%clk 0:00:04.4]} 51. Kg1
{[%clk 0:00:07.3]} 51... Qe1+ {[%clk 0:00:04.9]} 52. Kh2 {[%clk 0:00:07.9]}
52... Qh4+ {[%clk 0:00:05.5]} 53. Kg1 {[%clk 0:00:08.1]} 53... Qe1+ {[%clk
0:00:05.8]} 1/2-1/2

[Event "Early-Titled-Tuesday-Blitz-June-18-2024"]
[Site "Chess.com"]
[Date "2024.06.18"]
[Round "1"]
[White "mostafa_sakha"]
[Black "Puzzlebot_1294"]
[Result "0-1"]
[WhiteElo "2380"]
[BlackElo "2694"]
[TimeControl "180+1"]
[EndTime "8:08:14 PDT"]
[Termination "Puzzlebot_1294 won on time"]

1. d4 {[%clk 0:02:40.8]} 1... Nf6 {[%clk 0:02:58.2]} 2. c4 {[%clk 0:02:40]} 2...
e6 {[%clk 0:02:58.4]} 3. Nc3 {[%clk 0:02:39]} 3... Bb4 {[%clk 0:02:58.3]} 4. e3
{[%clk 0:02:39.4]} 4... O-O {[%clk 0:02:57.5]} 5. Bd3 {[%clk 0:02:39.2]} 5... d5
{[%clk 0:02:57.7]} 6. Nf3 {[%clk 0:02:39.1]} 6... dxc4 {[%clk 0:02:52.1]} 7.
Bxc4 {[%clk 0:02:40]} 7... a6 {[%clk 0:02:50.9]} 8. O-O {[%clk 0:02:39.9]} 8...
b5 {[%clk 0:02:50.7]} 9. Bd3 {[%clk 0:02:31.8]} 9... Bb7 {[%clk 0:02:49]} 10. a3
{[%clk 0:02:25.5]} 10... Bxc3 {[%clk 0:02:32.6]} 11. bxc3 {[%clk 0:02:26.4]}
11... c5 {[%clk 0:02:32.8]} 12. Re1 {[%clk 0:02:24.5]} 12... cxd4 {[%clk
0:02:28.2]} 13. cxd4 {[%clk 0:02:24.3]} 13... Nbd7 {[%clk 0:02:26.6]} 14. e4
{[%clk 0:02:23.1]} 14... h6 {[%clk 0:02:26.1]} 15. Qe2 {[%clk 0:01:50.8]} 15...
Re8 {[%clk 0:02:16.4]} 16. e5 {[%clk 0:01:50.4]} 16... Nd5 {[%clk 0:02:16.3]}
17. Qe4 {[%clk 0:01:47.7]} 17... f5 {[%clk 0:02:16.5]} 18. exf6 {[%clk
0:01:40.9]} 18... N7xf6 {[%clk 0:02:14.4]} 19. Qg6 {[%clk 0:01:38.5]} 19... Ne7
{[%clk 0:02:12.7]} 20. Qg3 {[%clk 0:01:27.6]} 20... Kh8 {[%clk 0:02:09.8]} 21.
Ne5 {[%clk 0:01:13.6]} 21... Qxd4 {[%clk 0:02:00.7]} 22. Bxh6 {[%clk 0:01:07.9]}
22... Nh5 {[%clk 0:01:32.3]} 23. Bxg7+ {[%clk 0:00:24.6]} 23... Nxg7 {[%clk
0:01:22.8]} 24. Qh3+ {[%clk 0:00:24.8]} 24... Kg8 {[%clk 0:01:23.3]} 25. Rad1
{[%clk 0:00:16.6]} 25... Rad8 {[%clk 0:00:54.2]} 26. Bh7+ {[%clk 0:00:12.6]}
26... Kf8 {[%clk 0:00:54.7]} 27. Rxd4 {[%clk 0:00:09.9]} 27... Rxd4 {[%clk
0:00:55.6]} 28. Ng6+ {[%clk 0:00:02.5]} 28... Nxg6 {[%clk 0:00:53.9]} 29. Bxg6
{[%clk 0:00:02.6]} 29... Red8 {[%clk 0:00:53.6]} 30. Qh8+ {[%clk 0:00:02.1]}
30... Ke7 {[%clk 0:00:54.2]} 31. Qxg7+ {[%clk 0:00:03]} 31... Kd6 {[%clk
0:00:55.1]} 32. Qxd4+ {[%clk 0:00:02.9]} 32... Kc7 {[%clk 0:00:56]} 33. Qe4
{[%clk 0:00:03]} 33... Bxe4 {[%clk 0:00:55.2]} 34. Bxe4 {[%clk 0:00:03.9]} 34...
a5 {[%clk 0:00:55.2]} 35. f3 {[%clk 0:00:04.4]} 35... b4 {[%clk 0:00:55.7]} 36.
axb4 {[%clk 0:00:05.3]} 36... axb4 {[%clk 0:00:56.4]} 37. Rb1 {[%clk 0:00:06.2]}
37... Rb8 {[%clk 0:00:56.9]} 38. Kf2 {[%clk 0:00:06.7]} 38... Kd6 {[%clk
0:00:57.5]} 39. Ke3 {[%clk 0:00:07]} 39... Kc5 {[%clk 0:00:58.2]} 40. f4 {[%clk
0:00:07.2]} 40... Rd8 {[%clk 0:00:57.8]} 41. g4 {[%clk 0:00:07.2]} 41... Rh8
{[%clk 0:00:57.8]} 42. Rb2 {[%clk 0:00:06.6]} 42... Rh3+ {[%clk 0:00:57.9]} 43.
Kf2 {[%clk 0:00:06.2]} 43... Rxh2+ {[%clk 0:00:57.7]} 44. Bg2 {[%clk 0:00:06.7]}
44... Rh4 {[%clk 0:00:58.3]} 45. Kg3 {[%clk 0:00:06.7]} 45... Rh8 {[%clk
0:00:59]} 46. Rc2+ {[%clk 0:00:06.8]} 46... Kd4 {[%clk 0:00:58.6]} 47. Rd2+
{[%clk 0:00:06.8]} 47... Kc3 {[%clk 0:00:58.3]} 48. Re2 {[%clk 0:00:06.6]} 48...
Re8 {[%clk 0:00:53.1]} 49. f5 {[%clk 0:00:06.7]} 49... b3 {[%clk 0:00:50]} 50.
Rxe6 {[%clk 0:00:07.1]} 50... b2 {[%clk 0:00:45.4]} 51. Rxe8 {[%clk 0:00:06.9]}
51... b1=Q {[%clk 0:00:44.8]} 52. Rc8+ {[%clk 0:00:07.2]} 52... Kd4 {[%clk
0:00:45.1]} 53. Rd8+ {[%clk 0:00:07.2]} 53... Ke5 {[%clk 0:00:44.7]} 54. Re8+
{[%clk 0:00:07.5]} 54... Kf6 {[%clk 0:00:45.1]} 55. Re3 {[%clk 0:00:06.5]} 55...
Qb8+ {[%clk 0:00:43.6]} 56. Kf2 {[%clk 0:00:06.9]} 56... Qf4+ {[%clk 0:00:42.8]}
57. Bf3 {[%clk 0:00:06.5]} 57... Qh2+ {[%clk 0:00:42.7]} 58. Bg2 {[%clk
0:00:06.2]} 58... Qf4+ {[%clk 0:00:42.7]} 59. Bf3 {[%clk 0:00:06.6]} 59... Kg5
{[%clk 0:00:41.9]} 60. Re6 {[%clk 0:00:05.4]} 60... Qh2+ {[%clk 0:00:42.2]} 61.
Bg2 {[%clk 0:00:05.3]} 61... Kxg4 {[%clk 0:00:43.1]} 62. Rg6+ {[%clk 0:00:03.5]}
62... Kxf5 {[%clk 0:00:41.6]} 63. Rg3 {[%clk 0:00:04]} 63... Qh4 {[%clk
0:00:40.6]} 64. Bf3 {[%clk 0:00:02.9]} 64... Kf4 {[%clk 0:00:40.5]} 0-1

[Event "Early-Titled-Tuesday-Blitz-June-18-2024"]
[Site "Chess.com"]
[Date "2024.06.18"]
[Round "1"]
[White "BestestBP"]
[Black "NovozhilovSemen"]
[Result "0-1"]
[WhiteElo "2263"]
[BlackElo "2617"]
[TimeControl "180+1"]
[EndTime "8:08:14 PDT"]
[Termination "NovozhilovSemen won by checkmate"]

1. e4 {[%clk 0:02:58.8]} 1... c5 {[%clk 0:02:54.3]} 2. Nf3 {[%clk 0:02:51.9]}
2... Nc6 {[%clk 0:02:53.2]} 3. Nc3 {[%clk 0:02:46.8]} 3... d6 {[%clk 0:02:52.7]}
4. d4 {[%clk 0:02:34.6]} 4... cxd4 {[%clk 0:02:53.6]} 5. Nxd4 {[%clk 0:02:35.3]}
5... Nf6 {[%clk 0:02:53.7]} 6. Be3 {[%clk 0:02:31.6]} 6... Ng4 {[%clk
0:02:51.4]} 7. Bb5 {[%clk 0:02:19]} 7... Nxe3 {[%clk 0:02:36.5]} 8. fxe3 {[%clk
0:02:19.9]} 8... Bd7 {[%clk 0:02:35.7]} 9. O-O {[%clk 0:02:11]} 9... e6 {[%clk
0:02:33]} 10. Qf3 {[%clk 0:02:03.4]} 10... Qf6 {[%clk 0:02:31.8]} 11. Qxf6
{[%clk 0:02:01.1]} 11... gxf6 {[%clk 0:02:32]} 12. Bxc6 {[%clk 0:01:56.9]} 12...
bxc6 {[%clk 0:02:31.6]} 13. Rxf6 {[%clk 0:01:56.7]} 13... Bg7 {[%clk 0:02:31.7]}
14. Rf2 {[%clk 0:01:50.8]} 14... c5 {[%clk 0:02:30.1]} 15. Ndb5 {[%clk
0:01:31.9]} 15... Ke7 {[%clk 0:02:28]} 16. Raf1 {[%clk 0:01:26.6]} 16... Rhf8
{[%clk 0:02:27.6]} 17. Rd1 {[%clk 0:01:21.1]} 17... Be5 {[%clk 0:01:59.4]} 18.
Rfd2 {[%clk 0:01:15.5]} 18... Bxb5 {[%clk 0:01:59.2]} 19. Nxb5 {[%clk 0:01:16]}
19... Rfd8 {[%clk 0:01:58.9]} 20. c3 {[%clk 0:01:13.4]} 20... h5 {[%clk
0:01:54.2]} 21. Na3 {[%clk 0:00:57.8]} 21... Rd7 {[%clk 0:01:28.9]} 22. Nc4
{[%clk 0:00:51.9]} 22... Rb7 {[%clk 0:01:28.1]} 23. b3 {[%clk 0:00:23.5]} 23...
Bxc3 {[%clk 0:01:18.5]} 24. Rxd6 {[%clk 0:00:23.4]} 24... a5 {[%clk 0:01:03.7]}
25. Nb6 {[%clk 0:00:18.1]} 25... Rg8 {[%clk 0:00:54.6]} 26. Rd7+ {[%clk
0:00:16]} 26... Rxd7 {[%clk 0:00:54.8]} 27. Rxd7+ {[%clk 0:00:16]} 27... Kf6
{[%clk 0:00:55.2]} 28. Na4 {[%clk 0:00:16.1]} 28... Bb4 {[%clk 0:00:53.3]} 29.
Rc7 {[%clk 0:00:15.3]} 29... Rg5 {[%clk 0:00:52.8]} 30. Kf2 {[%clk 0:00:13]}
30... h4 {[%clk 0:00:46.8]} 31. Kf3 {[%clk 0:00:13.3]} 31... Re5 {[%clk
0:00:40.8]} 32. Nb2 {[%clk 0:00:13.6]} 32... Rg5 {[%clk 0:00:33.9]} 33. Nd3
{[%clk 0:00:13.8]} 33... Ba3 {[%clk 0:00:29.4]} 34. e5+ {[%clk 0:00:13.4]} 34...
Kg7 {[%clk 0:00:26.6]} 35. Nxc5 {[%clk 0:00:12.1]} 35... Rxe5 {[%clk 0:00:26.7]}
36. Nd3 {[%clk 0:00:11.4]} 36... Rf5+ {[%clk 0:00:27.1]} 37. Ke2 {[%clk
0:00:11.4]} 37... Bd6 {[%clk 0:00:25.7]} 38. Rd7 {[%clk 0:00:05.5]} 38... Bxh2
{[%clk 0:00:25.8]} 39. e4 {[%clk 0:00:06]} 39... Rg5 {[%clk 0:00:23.4]} 40. Kf3
{[%clk 0:00:06.1]} 40... Bg3 {[%clk 0:00:21.5]} 41. a3 {[%clk 0:00:02.6]} 41...
Rb5 {[%clk 0:00:21.6]} 42. b4 {[%clk 0:00:02.6]} 42... axb4 {[%clk 0:00:22.3]}
43. axb4 {[%clk 0:00:03.5]} 43... Rb8 {[%clk 0:00:21.8]} 44. Nc5 {[%clk
0:00:03.8]} 44... Kf6 {[%clk 0:00:20.9]} 45. Nd3 {[%clk 0:00:03.4]} 45... Ra8
{[%clk 0:00:19.5]} 46. e5+ {[%clk 0:00:02.7]} 46... Kg6 {[%clk 0:00:17.2]} 47.
Kg4 {[%clk 0:00:03]} 47... Ra2 {[%clk 0:00:14.1]} 48. Nf4+ {[%clk 0:00:03.3]}
48... Bxf4 {[%clk 0:00:13.2]} 49. Kxf4 {[%clk 0:00:04]} 49... Rxg2 {[%clk
0:00:13.9]} 50. Rd8 {[%clk 0:00:03.9]} 50... Rb2 {[%clk 0:00:14.2]} 51. Rh8
{[%clk 0:00:03.7]} 51... Rxb4+ {[%clk 0:00:14.1]} 52. Kf3 {[%clk 0:00:04]} 52...
Kg5 {[%clk 0:00:14.7]} 53. Rh7 {[%clk 0:00:03.6]} 53... Kg6 {[%clk 0:00:14.7]}
54. Rh8 {[%clk 0:00:03.4]} 54... Ra4 {[%clk 0:00:14.2]} 55. Rf8 {[%clk
0:00:02.3]} 55... Ra5 {[%clk 0:00:13.4]} 56. Rh8 {[%clk 0:00:02.2]} 56... Rxe5
{[%clk 0:00:13.4]} 57. Rxh4 {[%clk 0:00:03]} 57... Kf6 {[%clk 0:00:14.3]} 58.
Rf4+ {[%clk 0:00:03.3]} 58... Rf5 {[%clk 0:00:15.2]} 59. Ke4 {[%clk 0:00:02.8]}
59... Rxf4+ {[%clk 0:00:15.7]} 60. Kxf4 {[%clk 0:00:03.7]} 60... e5+ {[%clk
0:00:16.6]} 61. Ke4 {[%clk 0:00:04.1]} 61... Ke6 {[%clk 0:00:17.5]} 62. Kf3
{[%clk 0:00:05]} 62... f5 {[%clk 0:00:18.4]} 63. Ke3 {[%clk 0:00:05.9]} 63... e4
{[%clk 0:00:19.3]} 64. Kf2 {[%clk 0:00:06.4]} 64... Ke5 {[%clk 0:00:20.2]} 65.
Ke2 {[%clk 0:00:07.2]} 65... f4 {[%clk 0:00:21.1]} 66. Kf1 {[%clk 0:00:08.1]}
66... e3 {[%clk 0:00:21.8]} 67. Ke2 {[%clk 0:00:09]} 67... Ke4 {[%clk
0:00:22.4]} 68. Ke1 {[%clk 0:00:09.9]} 68... f3 {[%clk 0:00:23.2]} 69. Kf1
{[%clk 0:00:10.8]} 69... Kd3 {[%clk 0:00:23.4]} 70. Ke1 {[%clk 0:00:11.7]} 70...
f2+ {[%clk 0:00:23.8]} 71. Kd1 {[%clk 0:00:12.4]} 71... f1=Q# {[%clk 0:00:22.5]}
0-1

[Event "Early-Titled-Tuesday-Blitz-June-18-2024"]
[Site "Chess.com"]
[Date "2024.06.18"]
[Round "1"]
[White "Chessmatenokk17"]
[Black "SharathRk6"]
[Result "1-0"]
[WhiteElo "2789"]
[BlackElo "2452"]
[TimeControl "180+1"]
[EndTime "8:08:17 PDT"]
[Termination "Chessmatenokk17 won by checkmate"]

1. e4 {[%clk 0:03:00.9]} 1... e5 {[%clk 0:02:59.6]} 2. Nf3 {[%clk 0:03:00.9]}
2... Nc6 {[%clk 0:03:00]} 3. Bc4 {[%clk 0:03:01.4]} 3... Bc5 {[%clk 0:02:59]} 4.
b4 {[%clk 0:03:01.2]} 4... Bxb4 {[%clk 0:02:58.7]} 5. c3 {[%clk 0:03:01.7]} 5...
Bd6 {[%clk 0:02:59.3]} 6. d4 {[%clk 0:03:01.1]} 6... Nf6 {[%clk 0:02:59.9]} 7.
O-O {[%clk 0:03:01.1]} 7... O-O {[%clk 0:02:59]} 8. Re1 {[%clk 0:02:56.8]} 8...
a6 {[%clk 0:02:59.3]} 9. Bg5 {[%clk 0:02:55.7]} 9... h6 {[%clk 0:02:56.1]} 10.
Bh4 {[%clk 0:02:55.7]} 10... Re8 {[%clk 0:02:52]} 11. Nbd2 {[%clk 0:02:52.1]}
11... b5 {[%clk 0:02:48]} 12. Bd5 {[%clk 0:02:24.6]} 12... Bb7 {[%clk
0:02:46.8]} 13. dxe5 {[%clk 0:02:19.1]} 13... Bxe5 {[%clk 0:02:40.7]} 14. Nxe5
{[%clk 0:02:19.3]} 14... Rxe5 {[%clk 0:02:40.7]} 15. f4 {[%clk 0:02:19.7]} 15...
Re8 {[%clk 0:02:38.8]} 16. e5 {[%clk 0:02:14.9]} 16... Nxd5 {[%clk 0:02:28.5]}
17. Bxd8 {[%clk 0:02:14]} 17... Raxd8 {[%clk 0:02:29.4]} 18. Qf3 {[%clk
0:02:07.5]} 18... Nde7 {[%clk 0:02:21.5]} 19. Nb3 {[%clk 0:02:04.2]} 19... Ba8
{[%clk 0:02:18.1]} 20. Qf2 {[%clk 0:02:01.6]} 20... Nd5 {[%clk 0:02:14.8]} 21.
Qd2 {[%clk 0:01:53.8]} 21... Nce7 {[%clk 0:02:11.6]} 22. Rad1 {[%clk 0:01:47.1]}
22... Ng6 {[%clk 0:02:06.6]} 23. g3 {[%clk 0:01:47.4]} 23... Nge7 {[%clk
0:01:48.5]} 24. Nc5 {[%clk 0:01:44.1]} 24... a5 {[%clk 0:01:42]} 25. a4 {[%clk
0:01:42.7]} 25... b4 {[%clk 0:01:41.6]} 26. c4 {[%clk 0:01:41.8]} 26... Nc3
{[%clk 0:01:41]} 27. Rc1 {[%clk 0:01:39.9]} 27... d6 {[%clk 0:01:36.3]} 28. exd6
{[%clk 0:01:36.7]} 28... Rxd6 {[%clk 0:01:37.2]} 29. Qf2 {[%clk 0:01:36.8]}
29... Kf8 {[%clk 0:01:13.2]} 30. Qe3 {[%clk 0:01:28.2]} 30... Rdd8 {[%clk
0:00:55.4]} 31. Rxc3 {[%clk 0:01:22.1]} 31... bxc3 {[%clk 0:00:43.8]} 32. Qxc3
{[%clk 0:01:23]} 32... Nc6 {[%clk 0:00:39.2]} 33. Rxe8+ {[%clk 0:01:12.7]} 33...
Rxe8 {[%clk 0:00:40.1]} 34. Kf2 {[%clk 0:01:10.6]} 34... Kg8 {[%clk 0:00:31.2]}
35. g4 {[%clk 0:01:09.3]} 35... Nb4 {[%clk 0:00:27.2]} 36. h4 {[%clk 0:01:05.2]}
36... Bc6 {[%clk 0:00:22.1]} 37. h5 {[%clk 0:01:03.8]} 37... Rd8 {[%clk
0:00:20.6]} 38. g5 {[%clk 0:01:02.3]} 38... hxg5 {[%clk 0:00:18.2]} 39. fxg5
{[%clk 0:01:02.6]} 39... Rd6 {[%clk 0:00:18.7]} 40. Qh3 {[%clk 0:00:56.9]} 40...
Rd2+ {[%clk 0:00:15.7]} 41. Ke3 {[%clk 0:00:52.9]} 41... Rc2 {[%clk 0:00:12.4]}
42. Qc8+ {[%clk 0:00:51.1]} 42... Kh7 {[%clk 0:00:12]} 43. Qf5+ {[%clk
0:00:45.7]} 43... Kg8 {[%clk 0:00:10.9]} 44. g6 {[%clk 0:00:42.4]} 44... Be8
{[%clk 0:00:05.2]} 45. Qc8 {[%clk 0:00:37.9]} 45... Kf8 {[%clk 0:00:05.6]} 46.
h6 {[%clk 0:00:27.2]} 46... gxh6 {[%clk 0:00:04.9]} 47. g7+ {[%clk 0:00:27.5]}
47... Kxg7 {[%clk 0:00:05.6]} 48. Qxe8 {[%clk 0:00:28.1]} 48... Rc3+ {[%clk
0:00:05.7]} 49. Kd4 {[%clk 0:00:26.6]} 49... Rc1 {[%clk 0:00:05.8]} 50. Qe5+
{[%clk 0:00:26.7]} 50... Kh7 {[%clk 0:00:05.8]} 51. Qf5+ {[%clk 0:00:26.3]}
51... Kg8 {[%clk 0:00:05.9]} 52. Qg4+ {[%clk 0:00:26.6]} 52... Kh7 {[%clk
0:00:06]} 53. Qe4+ {[%clk 0:00:26.8]} 53... Kg8 {[%clk 0:00:06.4]} 54. Qg2+
{[%clk 0:00:26.5]} 54... Kh7 {[%clk 0:00:06.1]} 55. Ne4 {[%clk 0:00:21]} 55...
Rd1+ {[%clk 0:00:06]} 56. Kc5 {[%clk 0:00:20.9]} 56... Nd3+ {[%clk 0:00:05.8]}
57. Kb5 {[%clk 0:00:18.8]} 57... Rb1+ {[%clk 0:00:05.6]} 58. Kxa5 {[%clk
0:00:18.8]} 58... Rb6 {[%clk 0:00:06.4]} 59. c5 {[%clk 0:00:17.5]} 59... Rg6
{[%clk 0:00:05.7]} 60. Qc2 {[%clk 0:00:16.6]} 60... Ne5 {[%clk 0:00:06.4]} 61.
Kb5 {[%clk 0:00:16.2]} 61... c6+ {[%clk 0:00:06.4]} 62. Kb6 {[%clk 0:00:16.6]}
62... h5 {[%clk 0:00:05.5]} 63. a5 {[%clk 0:00:17.1]} 63... h4 {[%clk
0:00:05.5]} 64. a6 {[%clk 0:00:17.2]} 64... Nd7+ {[%clk 0:00:05.5]} 65. Kc7
{[%clk 0:00:17.1]} 65... Ne5 {[%clk 0:00:04.2]} 66. a7 {[%clk 0:00:17.5]} 66...
Rg8 {[%clk 0:00:05.1]} 67. Nf6+ {[%clk 0:00:16.9]} 67... Kg7 {[%clk 0:00:05.8]}
68. Nxg8 {[%clk 0:00:17.8]} 68... h3 {[%clk 0:00:05.7]} 69. a8=Q {[%clk
0:00:17.3]} 69... h2 {[%clk 0:00:06.6]} 70. Qxh2 {[%clk 0:00:17.2]} 70... Ng6
{[%clk 0:00:06.4]} 71. Qh6# {[%clk 0:00:16.9]} 1-0